bitfinex/quotes_SOLUSD_20250719
["timestamp","ask_amount","ask_price","bid_price","bid_amount"]
[1752886171053,5.23293824,176.1,176.06,0.65]
[1752886171054,10.9115729,176.1,176.06,0.65]
[1752886171852,5.67830177,176.11,176.06,0.65]
[1752886172053,10.91124001,176.11,176.06,5.88293824]
[1752886172219,5.23293824,176.1,176.07,0.65]
[1752886172928,5.23293824,176.09,176.07,0.65]
[1752886173252,5.23293824,176.1,176.08,0.65]
[1752886173752,5.67830177,176.11,176.05,5.23293824]
[1752886173952,10.91124001,176.11,176.09,0.65]
[1752886174522,36.91124001,176.11,176.09,0.65]
[1752886174739,5.23293824,176.1,176.09,0.65]
[1752886175169,36.91124001,176.11,176.09,0.65]
[1752886175457,26.0,176.11,176.09,0.65]
[1752886175621,26.0,176.11,176.1,0.65]
[1752886176242,36.9112075,176.11,176.1,0.65]
[1752886176550,26.0,176.09,176.08,0.69]
[1752886176729,26.0,176.09,176.06,6.82993824]
[1752886177055,5.67891419,176.09,176.06,43.107]
[1752886177254,10.91185243,176.09,176.06,41.51]
[1752886177448,5.67891419,176.09,176.06,41.51]
[1752886177661,5.67891419,176.09,176.07,0.69]
[1752886178653,10.91185243,176.09,176.05,40.82]
[1752886178845,0.68,176.08,176.03,17.47468397]
[1752886179048,5.67891419,176.09,176.04,0.69]
[1752886179255,5.23293824,176.08,176.05,0.69]
[1752886179444,5.67891419,176.09,176.05,0.69]
[1752886179634,10.91185243,176.09,176.06,0.69]
[1752886179956,10.91185243,176.09,176.07,0.69]
[1752886180344,2.89083693,176.09,176.05,5.23293824]
[1752886180524,5.67923671,176.08,176.02,4.5507]
[1752886180729,5.23293824,176.08,176.06,0.69]
[1752886181345,10.91185243,176.09,176.06,0.69]
[1752886181653,26.0,176.07,176.06,0.69]
[1752886181862,26.0,176.07,176.06,0.75]
[1752886182542,10.91185243,176.09,176.06,0.75]
[1752886183047,5.67891419,176.09,176.06,0.75]
[1752886183348,10.91185243,176.09,176.07,0.69]
[1752886183529,10.91185243,176.09,176.06,0.75]
[1752886183934,26.0,176.07,176.06,0.06]
[1752886184133,5.67762448,176.13,176.06,5.29293824]
[1752886184355,10.91032847,176.14,176.09,5.23293824]
[1752886184566,5.23293824,176.15,176.1,46.76293824]
[1752886184944,31.23293824,176.15,176.11,0.69]
[1752886185146,5.23293824,176.14,176.11,0.69]
[1752886185539,5.23293824,176.13,176.1,40.84]
[1752886186438,5.23293824,176.13,176.1,41.53]
[1752886186633,0.68,176.14,176.1,41.53]
[1752886186963,5.67730214,176.14,176.11,0.69]
[1752886187142,10.91024038,176.14,176.11,0.69]
[1752886188181,5.67730214,176.14,176.12,0.69]
[1752886188333,26.0,176.13,176.12,0.69]
[1752886189036,5.26293824,176.18,176.12,5.92293824]
[1752886189231,10.93899367,176.18,176.13,0.69]
[1752886189433,10.93899367,176.18,176.14,46.03293824]
[1752886189673,26.0,176.16,176.15,0.69]
[1752886189839,10.93899367,176.18,176.16,0.69]
[1752886190039,26.0,176.17,176.16,0.69]
[1752886191439,0.03,176.18,176.16,5.92293824]
[1752886191648,0.03,176.18,176.17,0.69]
[1752886192369,5.26293824,176.18,176.15,0.69]
[1752886192871,0.03,176.18,176.15,0.69]
[1752886193164,0.03,176.18,176.14,46.03293824]
[1752886193365,0.03,176.18,176.16,0.69]
[1752886193673,0.03,176.18,176.16,5.92293824]
[1752886193849,0.03,176.18,176.17,0.69]
[1752886195578,0.03,176.18,176.17,5.92293824]
[1752886195761,0.03,176.18,176.17,28.38395756]
[1752886196080,0.03,176.18,176.17,28.95159109]
[1752886197857,0.03,176.18,176.17,69.71159109]
[1752886198564,0.03,176.18,176.17,76.32549109]
[1752886199057,0.03,176.22,176.18,16.78468397]
[1752886199373,0.03,176.22,176.21,5.23293824]
[1752886199673,0.03,176.22,176.21,46.54044292]
[1752886199858,0.03,176.22,176.21,47.23044292]
[1752886200368,0.03,176.22,176.21,52.90548973]
[1752886201461,0.03,176.22,176.21,47.67255149]
[1752886201659,0.03,176.22,176.21,40.74]
[1752886201876,5.94293824,176.22,176.17,11.84683824]
[1752886202056,0.71,176.22,176.18,40.74]
[1752886202255,0.03,176.22,176.18,41.43]
[1752886202472,5.26293824,176.22,176.18,41.43]
[1752886204252,0.03,176.22,176.18,41.43]
[1752886204455,5.26293824,176.22,176.18,41.43]
[1752886205491,0.03,176.22,176.18,45.97293824]
[1752886205780,0.03,176.22,176.19,0.69]
[1752886205967,0.03,176.22,176.19,5.92293824]
[1752886206162,0.03,176.22,176.2,5.23293824]
[1752886206362,0.03,176.22,176.21,40.72]
[1752886206669,0.03,176.22,176.21,41.41]
[1752886207083,0.03,176.22,176.21,46.64293824]
[1752886208563,0.03,176.22,176.21,52.31798505]
[1752886209597,0.03,176.22,176.21,46.64293824]
[1752886209970,0.03,176.22,176.21,52.31798505]
[1752886210290,0.03,176.22,176.21,69.10266902]
[1752886211166,0.03,176.22,176.21,69.6701737]
[1752886212068,0.03,176.22,176.21,158.8692737]
[1752886212275,0.03,176.26,176.25,22.01762221]
[1752886212495,0.03,176.26,176.25,150.82499809]
[1752886212794,0.03,176.26,176.25,156.62138107]
[1752886214203,0.03,176.26,176.25,69.02138107]
[1752886214497,0.03,176.26,176.25,69.58875695]
[1752886216194,0.03,176.26,176.25,64.35581871]
[1752886216398,0.03,176.26,176.25,69.58875695]
[1752886219479,0.03,176.26,176.25,64.35581871]
[1752886219785,0.03,176.26,176.25,69.58875695]
[1752886221413,0.03,176.26,176.25,157.18875695]
[1752886221582,0.03,176.26,176.25,156.62138107]
[1752886223282,0.03,176.26,176.25,110.74844283]
[1752886223604,0.03,176.26,176.25,57.44468397]
[1752886223908,0.03,176.26,176.25,62.67762221]
[1752886226279,0.03,176.26,176.25,40.66]
[1752886226505,0.72,176.26,176.25,40.66]
[1752886227208,5.95293824,176.26,176.22,0.06]
[1752886227419,0.72,176.26,176.23,45.93293824]
[1752886227723,0.03,176.26,176.23,40.7]
[1752886227925,0.69,176.25,176.23,45.93293824]
[1752886228123,0.03,176.26,176.23,40.7]
[1752886228331,0.69,176.24,176.23,40.7]
[1752886228995,0.03,176.26,176.23,45.93293824]
[1752886228996,0.72,176.26,176.23,45.93293824]
[1752886230910,0.72,176.26,176.23,40.7]
[1752886231113,0.72,176.26,176.23,45.93293824]
[1752886232296,0.03,176.26,176.24,5.23293824]
[1752886232494,0.03,176.26,176.25,40.7]
[1752886233119,0.03,176.26,176.25,63.40762221]
[1752886233619,0.03,176.26,176.25,69.64875695]
[1752886239996,0.03,176.26,176.25,71.50830679]
[1752886242299,0.03,176.26,176.25,63.03844283]
[1752886242499,0.03,176.26,176.25,66.58468687]
[1752886242834,0.03,176.26,176.25,60.91092801]
[1752886243202,0.74,176.26,176.25,60.91092801]
[1752886243426,0.74,176.26,176.25,57.36468397]
[1752886243615,0.74,176.26,176.25,40.58]
[1752886244129,30.28624404,176.26,176.25,40.6]
[1752886244327,31.94404404,176.26,176.25,40.6]
[1752886244720,37.617481,176.26,176.25,40.6]
[1752886246440,41.16372504,176.26,176.24,40.6]
[1752886246737,4.25624404,176.25,176.23,40.58]
[1752886246907,4.25624404,176.24,176.23,40.58]
[1752886247713,9.93032483,176.24,176.23,40.58]
[1752886250221,6.38408079,176.24,176.23,40.58]
[1752886251028,1.6878,176.26,176.23,40.58]
[1752886251029,34.07145278,176.26,176.23,40.58]
[1752886251222,33.36145278,176.26,176.23,40.58]
[1752886251423,0.71,176.25,176.23,40.58]
[1752886252145,0.71,176.24,176.23,40.58]
[1752886254141,34.07131282,176.26,176.23,40.58]
[1752886254320,36.90755686,176.26,176.23,40.58]
[1752886254522,0.71,176.24,176.23,40.58]
[1752886255617,6.38408079,176.24,176.23,40.58]
[1752886257139,9.93032483,176.24,176.22,0.06]
[1752886257340,4.25624404,176.23,176.22,0.06]
[1752886257530,4.25624404,176.23,176.22,40.62]
[1752886258347,35.9306468,176.23,176.22,40.62]
[1752886261348,32.38440276,176.23,176.22,40.62]
[1752886261648,35.9306468,176.23,176.22,40.62]
[1752886262645,26.0,176.23,176.22,40.62]
[1752886262835,26.0,176.23,176.22,41.3]
[1752886263355,5.70351024,176.26,176.22,44.84624404]
[1752886263533,0.03,176.26,176.25,3.54624404]
[1752886263846,0.03,176.26,176.25,61.53092801]
[1752886264731,0.03,176.26,176.25,57.98468397]
[1752886264936,0.03,176.26,176.24,3.54624404]
[1752886265144,0.03,176.26,176.25,40.52]
[1752886265341,0.74,176.26,176.22,16.84468397]
[1752886265535,0.71,176.25,176.23,40.52]
[1752886265948,0.71,176.25,176.23,44.06624404]
[1752886266231,5.70357963,176.26,176.23,44.06624404]
[1752886266232,5.70357963,176.26,176.23,40.52]
[1752886266430,6.39357963,176.26,176.23,44.06624404]
[1752886267748,0.03,176.26,176.25,3.54624404]
[1752886267944,0.03,176.26,176.25,40.52]
[1752886268436,5.70343696,176.26,176.25,40.52]
[1752886268843,0.03,176.26,176.25,40.52]
[1752886269031,0.03,176.26,176.25,41.22]
[1752886269933,0.03,176.26,176.25,40.52]
[1752886270730,0.72,176.26,176.25,40.52]
[1752886271433,0.03,176.26,176.25,40.52]
[1752886272737,0.72,176.26,176.25,40.52]
[1752886273445,0.72,176.26,176.24,40.5]
[1752886273446,7.81248808,176.26,176.24,40.5]
[1752886273642,3.54624404,176.25,176.24,40.5]
[1752886273843,4.23624404,176.25,176.24,40.5]
[1752886274456,29.57624404,176.26,176.24,40.5]
[1752886274638,5.67375886,176.25,176.24,40.5]
[1752886274956,9.9100029,176.25,176.24,40.5]
[1752886280863,9.9100029,176.25,176.22,40.56]
[1752886281033,3.54624404,176.23,176.22,40.56]
[1752886281237,4.23624404,176.23,176.22,40.56]
[1752886281754,3.54624404,176.24,176.22,40.56]
[1752886282060,5.67375886,176.25,176.23,4.24624404]
[1752886282229,5.67375886,176.25,176.22,40.56]
[1752886282429,9.9100029,176.25,176.22,40.56]
[1752886282655,3.54624404,176.24,176.22,40.56]
[1752886282829,4.23624404,176.24,176.22,40.56]
[1752886283260,9.91056989,176.24,176.22,40.56]
[1752886283739,5.67432585,176.24,176.22,40.56]
[1752886284346,5.67432585,176.24,176.22,41.26]
[1752886284649,26.0,176.25,176.23,0.7]
[1752886284837,5.70351354,176.26,176.23,4.24624404]
[1752886285037,5.70351354,176.26,176.24,0.7]
[1752886285241,5.70351354,176.26,176.25,40.5]
[1752886285442,0.03,176.26,176.25,41.2]
[1752886285634,0.03,176.26,176.25,44.74624404]
[1752886286660,0.03,176.26,176.25,40.5]
[1752886287350,5.67375886,176.25,176.22,0.06]
[1752886287551,3.54624404,176.24,176.23,40.5]
[1752886288064,6.36375886,176.25,176.23,40.5]
[1752886288264,3.54624404,176.24,176.23,40.5]
[1752886288476,5.67375886,176.25,176.23,40.5]
[1752886289049,26.0,176.24,176.23,40.5]
[1752886289644,26.0,176.24,176.23,41.2]
[1752886289841,26.0,176.24,176.23,40.5]
[1752886290046,30.23624404,176.24,176.23,40.5]
[1752886290455,26.69,176.24,176.23,40.5]
[1752886290654,31.67408079,176.24,176.23,40.5]
[1752886294966,26.0,176.24,176.23,40.5]
[1752886295674,31.67408079,176.24,176.23,40.5]
[1752886295974,26.0,176.24,176.23,41.2]
[1752886299768,26.0,176.24,176.23,40.5]
[1752886299967,31.67408079,176.24,176.23,40.5]
[1752886302159,35.22032483,176.24,176.23,40.5]
[1752886302582,31.67408079,176.24,176.23,40.5]
[1752886303084,32.38408079,176.24,176.23,40.5]
[1752886304058,31.67408079,176.24,176.23,40.5]
[1752886304561,35.93032483,176.24,176.22,0.06]
[1752886304759,35.93032483,176.24,176.23,40.5]
[1752886305385,32.38408079,176.24,176.23,40.5]
[1752886306656,31.67408079,176.24,176.23,40.5]
[1752886309187,32.38408079,176.24,176.23,40.5]
[1752886309985,35.93032483,176.24,176.23,40.5]
[1752886310689,35.22032483,176.24,176.23,40.5]
[1752886311185,31.67408079,176.24,176.23,40.5]
[1752886312167,35.22032483,176.24,176.23,40.5]
[1752886312561,35.93032483,176.24,176.23,40.5]
[1752886313278,35.93032483,176.24,176.22,0.06]
[1752886313582,4.25624404,176.23,176.22,40.56]
[1752886314577,35.9306468,176.23,176.22,40.56]
[1752886315868,31.67440276,176.23,176.22,40.56]
[1752886319688,35.2206468,176.23,176.22,40.56]
[1752886320075,35.9306468,176.23,176.22,40.56]
[1752886321067,35.9306468,176.23,176.22,0.06]
[1752886321874,31.67440276,176.23,176.22,0.06]
[1752886322484,35.2206468,176.23,176.22,0.06]
[1752886323504,35.9306468,176.23,176.22,0.06]
[1752886323968,35.2206468,176.23,176.22,0.06]
[1752886324488,26.0,176.23,176.22,0.77]
[1752886324992,0.03,176.25,176.22,4.31624404]
[1752886325293,0.03,176.25,176.23,44.75624404]
[1752886325672,0.03,176.25,176.24,0.71]
[1752886325873,0.03,176.25,176.24,21.04092801]
[1752886326393,0.03,176.25,176.24,20.99092801]
[1752886331021,0.03,176.25,176.24,17.44468397]
[1752886331196,0.03,176.25,176.23,3.54624404]
[1752886331502,0.03,176.25,176.24,40.48]
[1752886331902,0.03,176.25,176.24,41.14]
[1752886332510,0.03,176.25,176.24,44.68624404]
[1752886334093,0.03,176.25,176.24,44.02624404]
[1752886334698,0.71,176.25,176.24,40.48]
[1752886335409,0.03,176.25,176.24,40.48]
[1752886336195,26.0,176.24,176.22,0.06]
[1752886336388,26.0,176.24,176.23,40.48]
[1752886337003,26.68,176.24,176.23,40.48]
[1752886337329,26.0,176.24,176.23,40.48]
[1752886337809,0.03,176.25,176.23,44.68624404]
[1752886338186,26.03,176.25,176.24,0.66]
[1752886339610,0.03,176.25,176.24,4.20624404]
[1752886341106,0.03,176.25,176.24,0.66]
[1752886341406,0.03,176.25,176.24,4.20624404]
[1752886341615,0.03,176.25,176.24,26.6650088]
[1752886341912,0.03,176.25,176.24,27.23241687]
[1752886345490,0.03,176.25,176.24,21.55833608]
[1752886345893,0.03,176.25,176.24,20.99092801]
[1752886348796,0.03,176.25,176.24,17.44468397]
[1752886349022,0.03,176.25,176.24,61.45092801]
[1752886353836,26.71,176.25,176.22,0.06]
[1752886354011,0.68,176.24,176.23,40.44]
[1752886354734,32.35408079,176.24,176.23,40.44]
[1752886355811,32.35408079,176.24,176.22,0.06]
[1752886356031,0.68,176.23,176.22,0.06]
[1752886356246,0.68,176.23,176.22,40.5]
[1752886356827,6.35440276,176.23,176.22,40.5]
[1752886361324,5.67440276,176.23,176.22,40.5]
[1752886362215,4.27624404,176.25,176.22,40.5]
[1752886362216,0.03,176.25,176.23,16.78468397]
[1752886362413,0.03,176.25,176.24,44.70624404]
[1752886363614,0.03,176.25,176.24,62.05833608]
[1752886364009,0.03,176.25,176.24,67.73241687]
[1752886365940,0.03,176.25,176.24,71.27866091]
[1752886366642,0.03,176.25,176.24,67.73241687]
[1752886367838,0.03,176.25,176.24,71.27866091]
[1752886371447,0.03,176.25,176.24,158.87866091]
[1752886371744,0.03,176.26,176.25,16.78468397]
[1752886371916,0.03,176.26,176.25,30.98087205]
[1752886372522,0.03,176.26,176.25,36.65463091]
[1752886372752,0.03,176.26,176.25,37.22200679]
[1752886375351,0.03,176.26,176.25,124.82200679]
[1752886375656,0.03,176.26,176.25,124.25463091]
[1752886376027,0.03,176.28,176.25,124.25463091]
[1752886376345,0.03,176.28,176.27,20.33092801]
[1752886376866,0.03,176.3,176.29,16.78468397]
[1752886377157,0.03,176.32,176.29,64.84441919]
[1752886377366,0.03,176.32,176.31,23.87717205]
[1752886377555,0.03,176.32,176.31,152.44435485]
[1752886377730,0.03,176.32,176.31,152.59717205]
[1752886378872,0.03,176.32,176.31,158.26900008]
[1752886380831,0.03,176.32,176.31,154.72275604]
[1752886381036,0.03,176.32,176.31,104.38468397]
[1752886381236,0.73,176.32,176.31,87.6]
[1752886381554,0.73,176.32,176.31,128.0]
[1752886382330,0.03,176.32,176.31,148.33092801]
[1752886382533,0.03,176.32,176.31,149.05092801]
[1752886382846,0.03,176.32,176.31,154.72275604]
[1752886383257,0.03,176.32,176.31,67.12275604]
[1752886383595,0.03,176.32,176.31,20.33092801]
[1752886383732,0.03,176.32,176.31,60.71092801]
[1752886385275,0.03,176.32,176.31,61.43092801]
[1752886387870,0.03,176.32,176.31,67.10275604]
[1752886388052,0.03,176.32,176.31,67.66993884]
[1752886388975,0.03,176.32,176.31,67.10275604]
[1752886389975,0.03,176.32,176.31,61.43092801]
[1752886390161,0.03,176.32,176.31,57.16468397]
[1752886390355,0.03,176.32,176.31,61.40092801]
[1752886391145,0.03,176.32,176.31,67.07275604]
[1752886392647,0.03,176.32,176.31,66.38275604]
[1752886392859,0.03,176.32,176.31,154.67275604]
[1752886394751,0.03,176.32,176.31,153.98275604]
[1752886394970,0.03,176.32,176.31,154.67275604]
[1752886395468,0.03,176.32,176.31,153.98275604]
[1752886395647,0.03,176.32,176.31,148.31092801]
[1752886395847,0.03,176.32,176.31,154.67275604]
[1752886398169,0.03,176.32,176.31,148.31092801]
[1752886398466,0.03,176.32,176.31,153.98275604]
[1752886398767,0.03,176.32,176.31,154.67275604]
[1752886400066,0.03,176.32,176.31,96.61900008]
[1752886400777,0.03,176.32,176.31,93.07275604]
[1752886401466,0.03,176.32,176.31,93.63993884]
[1752886403977,0.03,176.32,176.31,97.18618288]
[1752886404753,0.03,176.32,176.31,184.78618288]
[1752886404958,0.03,176.32,176.31,184.21900008]
[1752886405368,0.06,176.33,176.31,184.21900008]
[1752886405558,0.03,176.34,176.32,24.56717205]
[1752886405771,0.03,176.34,176.33,64.78429052]
[1752886405960,0.03,176.34,176.33,65.47429052]
[1752886406158,0.1,176.36,176.34,16.78468397]
[1752886406478,0.1,176.36,176.35,66.90852369]
[1752886406651,0.1,176.36,176.35,67.59852369]
[1752886407067,0.1,176.36,176.35,64.05227965]
[1752886407282,0.1,176.36,176.35,67.59852369]
[1752886408680,0.03,176.38,176.36,16.78468397]
[1752886408975,0.03,176.38,176.37,61.23791786]
[1752886409175,0.03,176.38,176.37,61.92791786]
[1752886410755,0.03,176.38,176.37,155.19781636]
[1752886410968,0.03,176.38,176.37,154.63082651]
[1752886412980,0.03,176.38,176.37,158.17707055]
[1752886413357,0.1,176.4,176.38,16.78468397]
[1752886413601,0.1,176.4,176.38,112.73412975]
[1752886413767,0.06,176.43,176.38,114.23562975]
[1752886414078,0.06,176.43,176.42,20.33092801]
[1752886414276,0.06,176.43,176.42,148.81775716]
[1752886414479,0.06,176.43,176.42,148.25092801]
[1752886414654,0.06,176.43,176.42,148.94092801]
[1752886415072,0.06,176.43,176.42,154.60921958]
[1752886419686,0.1,176.44,176.42,154.60921958]
[1752886419987,0.1,176.44,176.43,21.57772503]
[1752886420379,0.1,176.44,176.43,109.17772503]
[1752886420681,0.1,176.44,176.43,118.39193936]
[1752886420883,0.06,176.45,176.44,16.78468397]
[1752886421072,0.06,176.46,176.44,64.17717205]
[1752886421272,0.06,176.46,176.45,24.44390483]
[1752886421472,0.06,176.46,176.45,138.72390483]
[1752886421675,0.06,176.49,176.46,16.78468397]
[1752886421879,0.06,176.49,176.47,64.7438406]
[1752886422186,0.06,176.49,176.48,46.33092801]
[1752886422564,0.06,176.49,176.48,47.01092801]
[1752886422886,0.06,176.49,176.48,52.67729247]
[1752886423785,0.7,176.55,176.48,140.27729247]
[1752886424091,0.7,176.55,176.54,20.33092801]
[1752886424295,0.7,176.55,176.54,60.61092801]
[1752886424802,0.1,176.56,176.55,16.78468397]
[1752886425092,0.1,176.56,176.55,60.61092801]
[1752886425470,0.1,176.56,176.55,57.06468397]
[1752886425660,5.76384737,176.56,176.55,40.28]
[1752886425859,6.46384737,176.56,176.55,40.28]
[1752886426686,6.46384737,176.56,176.48,32.34609512]
[1752886426885,0.7,176.55,176.53,3.54624404]
[1752886427089,0.7,176.55,176.54,40.28]
[1752886427776,0.7,176.55,176.54,43.82624404]
[1752886429096,6.36415293,176.55,176.5,16.78468397]
[1752886429397,0.7,176.54,176.53,3.54624404]
[1752886429599,0.7,176.54,176.53,43.82624404]
[1752886431821,0.7,176.54,176.53,40.28]
[1752886432001,0.7,176.54,176.53,43.82624404]
[1752886437016,6.36443865,176.54,176.53,43.82624404]
[1752886439012,0.7,176.54,176.53,43.82624404]
[1752886440428,6.36443865,176.54,176.53,43.82624404]
[1752886440827,9.91068269,176.54,176.49,3.54624404]
[1752886441027,1.5464,176.52,176.5,40.24]
[1752886441208,5.09264404,176.52,176.51,40.24]
[1752886441815,31.78264404,176.52,176.42,0.03]
[1752886442016,3.54624404,176.47,176.42,3.57624404]
[1752886442232,26.0,176.49,176.42,3.57624404]
[1752886442233,5.66732785,176.45,176.42,0.03]
[1752886442530,5.66732785,176.45,176.43,40.24]
[1752886442714,0.69,176.45,176.43,43.78624404]
[1752886443412,5.66709971,176.46,176.43,43.78624404]
[1752886443718,4.23624404,176.44,176.42,0.03]
[1752886443910,3.54624404,176.43,176.42,0.03]
[1752886444229,3.54624404,176.43,176.42,40.27]
[1752886444230,0.69,176.43,176.42,40.27]
[1752886445130,6.35797029,176.43,176.42,40.27]
[1752886445706,0.69,176.43,176.42,40.27]
[1752886446412,6.35797029,176.43,176.42,40.27]
[1752886447832,0.69,176.43,176.42,40.27]
[1752886449036,6.35797029,176.43,176.42,40.27]
[1752886450116,9.90421433,176.43,176.42,40.27]
[1752886450910,35.90421433,176.43,176.42,40.27]
[1752886451935,9.90421433,176.43,176.42,40.27]
[1752886452119,35.90421433,176.43,176.42,0.03]
[1752886452318,9.90421433,176.43,176.42,0.03]
[1752886452520,26.0,176.41,176.34,63.88047507]
[1752886452735,3.54624404,176.37,176.35,40.24]
[1752886452937,0.68,176.36,176.35,40.24]
[1752886453630,6.35022,176.36,176.35,40.24]
[1752886453940,9.89646404,176.36,176.35,40.24]
[1752886455452,6.35022,176.36,176.35,40.24]
[1752886455820,9.89646404,176.36,176.35,40.24]
[1752886459539,1.6232,176.37,176.35,40.24]
[1752886459540,5.6698985,176.37,176.35,40.24]
[1752886459721,3.54624404,176.36,176.35,40.24]
[1752886460815,9.21646404,176.36,176.35,40.24]
[1752886462440,9.89646404,176.36,176.35,40.24]
[1752886463443,12.77692275,176.36,176.34,63.88047507]
[1752886463619,5.75834404,176.35,176.34,63.88047507]
[1752886463949,26.0,176.33,176.32,40.46]
[1752886464235,33.77248808,176.33,176.32,0.2]
[1752886464417,39.44367279,176.33,176.32,0.2]
[1752886465026,39.44367279,176.33,176.3,0.03]
[1752886465245,29.54624404,176.31,176.3,0.03]
[1752886465447,36.08784404,176.31,176.3,0.03]
[1752886465629,36.76784404,176.31,176.3,0.03]
[1752886466548,42.43967207,176.31,176.3,0.03]
[1752886466728,26.0,176.24,176.22,0.06]
[1752886466932,29.54624404,176.23,176.22,0.06]
[1752886467122,26.0,176.21,176.18,2.56]
[1752886467326,3.54624404,176.2,176.18,2.56]
[1752886467523,4.22624404,176.2,176.18,2.56]
[1752886468538,5.67569101,176.19,176.18,2.56]
[1752886468738,9.22193505,176.19,176.18,2.56]
[1752886469326,5.67569101,176.19,176.18,2.56]
[1752886469526,5.67569101,176.19,176.18,3.26]
[1752886469527,26.0,176.19,176.18,3.26]
[1752886470236,3.54624404,176.21,176.18,3.26]
[1752886470558,35.22096881,176.22,176.18,2.56]
[1752886470847,17.7299668,176.26,176.18,2.56]
[1752886470848,26.0,176.2,176.18,2.56]
[1752886471037,35.90177204,176.2,176.18,2.56]
[1752886471350,3.54624404,176.19,176.18,2.56]
[1752886471934,3.54624404,176.19,176.18,2.06]
[1752886473024,9.22193505,176.19,176.18,2.06]
[1752886474047,9.90193505,176.19,176.18,2.06]
[1752886477940,13.44817909,176.19,176.18,2.06]
[1752886479153,9.90193505,176.19,176.18,2.06]
[1752886479752,9.91193505,176.19,176.18,2.06]
[1752886479961,13.45817909,176.19,176.18,2.06]
[1752886480155,13.45817909,176.19,176.17,0.2]
[1752886480463,4.23624404,176.18,176.17,0.2]
[1752886481062,9.9122572,176.18,176.17,0.2]
[1752886487345,26.0,176.15,176.14,0.06]
[1752886487651,35.22322388,176.15,176.14,0.06]
[1752886487860,32.36697984,176.15,176.14,0.06]
[1752886488051,35.91322388,176.15,176.14,0.06]
[1752886491354,32.36697984,176.15,176.14,0.06]
[1752886491665,0.03,176.19,176.14,0.74]
[1752886491858,3.54624404,176.18,176.14,0.74]
[1752886493655,9.22247229,176.18,176.14,0.74]
[1752886493873,3.54624404,176.16,176.14,0.74]
[1752886494059,3.54624404,176.16,176.15,0.68]
[1752886494950,3.54624404,176.17,176.15,0.68]
[1752886495376,5.67622825,176.18,176.15,0.68]
[1752886495553,3.54624404,176.17,176.16,0.68]
[1752886495754,35.22257939,176.17,176.16,0.68]
[1752886495953,26.0,176.17,176.16,0.68]
[1752886496752,3.57624404,176.19,176.16,0.68]
[1752886497162,9.25201342,176.19,176.14,3.60624404]
[1752886497461,9.25201342,176.19,176.17,0.68]
[1752886497961,3.54624404,176.18,176.17,0.68]
[1752886498958,9.2222572,176.18,176.15,0.68]
[1752886499160,3.54624404,176.17,176.15,0.68]
[1752886499359,3.54624404,176.17,176.16,0.68]
[1752886500283,5.70579001,176.19,176.16,0.68]
[1752886500461,9.25203405,176.19,176.16,0.68]
[1752886500860,3.54624404,176.17,176.15,0.68]
[1752886501062,26.0,176.16,176.15,0.68]
[1752886501469,26.0,176.16,176.14,0.06]
[1752886501672,3.54624404,176.15,176.14,0.06]
[1752886502660,9.22322388,176.15,176.14,0.06]
[1752886503689,5.67697984,176.15,176.14,0.06]
[1752886503871,0.03,176.19,176.15,16.78468397]
[1752886504059,0.03,176.19,176.18,3.54624404]